bitfinex/quotes_ETHUSD_20250715
["timestamp","ask_amount","ask_price","bid_price","bid_amount"]
[1752539498637,5.042,3016.8,3016.3,0.7928]
[1752539498805,3.31502483,3016.6,3016.5,0.1656]
[1752539499007,8.35702483,3016.6,3016.5,0.1656]
[1752539501517,3.31521018,3016.4,3016.1,0.041]
[1752539501725,8.35732009,3016.3,3016.2,0.1656]
[1752539502809,3.31500892,3016.6,3016.3,0.7871]
[1752539503034,5.042,3016.5,3016.3,0.7871]
[1752539503549,5.042,3016.5,3016.4,0.1656]
[1752539505748,0.15462185,3016.7,3016.4,0.1656]
[1752539506041,5.042,3016.6,3016.4,0.1656]
[1752539506207,5.042,3016.6,3016.3,4.10233711]
[1752539506408,5.042,3016.6,3016.5,0.1656]
[1752539507651,0.15462185,3016.7,3016.6,0.7742]
[1752539507853,5.19662185,3016.7,3016.6,0.7742]
[1752539515362,0.15462185,3016.7,3016.6,4.51467833]
[1752539515671,5.19662185,3016.7,3016.6,4.51467833]
[1752539518336,0.15462185,3016.7,3016.6,4.51467833]
[1752539518575,5.19562185,3016.7,3016.6,4.54782823]
[1752539518776,5.19562185,3016.7,3016.6,4.51467833]
[1752539520461,5.19562185,3016.7,3016.6,0.7742]
[1752539520774,5.19562185,3016.7,3016.5,0.1656]
[1752539520953,8.51058622,3016.7,3016.5,0.1656]
[1752539521680,3.31499038,3016.6,3016.5,0.1656]
[1752539523576,3.31499038,3016.6,3016.3,0.1656]
[1752539523577,0.7694,3016.5,3016.3,0.1656]
[1752539523778,8.35621018,3016.4,3016.3,0.1656]
[1752539526389,5.041,3016.4,3016.3,0.1656]
[1752539526790,3.31503561,3016.6,3016.3,0.1656]
[1752539526955,5.041,3016.5,3016.3,0.1656]
[1752539527156,5.041,3016.5,3016.2,0.7823]
[1752539527350,5.041,3016.5,3016.4,0.1656]
[1752539528582,3.31510028,3016.5,3016.4,0.1656]
[1752539528985,8.35610028,3016.5,3016.4,0.1656]
[1752539529496,5.041,3016.5,3016.4,0.1656]
[1752539531092,8.35610028,3016.5,3016.4,0.1656]
[1752539531256,3.31521018,3016.4,3016.3,0.001]
[1752539531464,9.63541984,3016.4,3016.3,0.001]
[1752539531859,3.31521018,3016.4,3016.3,0.001]
[1752539532163,8.35621018,3016.4,3016.3,0.001]
[1752539532893,9.70033792,3016.4,3016.3,0.001]
[1752539538740,0.7533,3016.5,3016.3,0.001]
[1752539538866,5.042,3016.4,3016.3,0.001]
[1752539541787,3.46950943,3016.7,3016.3,0.001]
[1752539541788,0.15462185,3016.7,3016.3,0.001]
[1752539541987,0.15462185,3016.7,3016.4,3.31512214]
[1752539542206,5.041,3016.6,3016.4,3.48072214]
[1752539542469,5.041,3016.6,3016.4,0.1656]
[1752539542903,5.041,3016.6,3016.4,3.480738]
[1752539543368,0.15462185,3016.7,3016.4,3.480738]
[1752539543572,5.041,3016.6,3016.4,3.480738]
[1752539544105,5.041,3016.6,3016.4,3.48078501]
[1752539544403,5.041,3016.6,3016.4,0.1656]
[1752539544609,5.041,3016.6,3016.4,3.4807676]
[1752539545172,5.041,3016.6,3016.4,0.1656]
[1752539546207,5.041,3016.6,3016.4,3.48074922]
[1752539546911,5.041,3016.6,3016.4,0.1656]
[1752539547785,0.786,3016.5,3016.4,0.1656]
[1752539547980,4.10110028,3016.5,3016.4,0.1656]
[1752539549094,0.786,3016.5,3016.4,0.1656]
[1752539550404,4.10110028,3016.5,3016.4,0.1656]
[1752539551212,0.786,3016.5,3016.4,0.1656]
[1752539551783,4.10110028,3016.5,3016.4,0.1656]
[1752539552182,3.31521018,3016.4,3016.3,0.001]
[1752539552408,8.35621018,3016.4,3016.3,0.001]
[1752539553705,24.67641984,3016.4,3016.3,0.001]
[1752539553891,25.44651984,3016.4,3016.3,0.001]
[1752539555726,19.12631018,3016.4,3016.3,0.001]
[1752539555929,20.6476835,3016.4,3016.3,0.001]
[1752539560536,26.96789316,3016.4,3016.3,0.001]
[1752539562740,26.96789316,3016.4,3016.3,1e-08]
[1752539563101,27.51789316,3016.4,3016.3,1e-08]
[1752539563498,13.31553993,3016.1,3016.0,0.001]
[1752539563808,26.9270214,3016.1,3016.0,0.001]
[1752539567643,4.1144598,3015.9,3015.8,1e-08]
[1752539567941,9.1554598,3015.9,3015.8,1e-08]
[1752539570544,4.1144598,3015.9,3015.8,1e-08]
[1752539570707,10.67783312,3015.9,3015.8,1e-08]
[1752539570905,5.63583312,3015.9,3015.8,1e-08]
[1752539571111,19.1564598,3015.9,3015.8,1e-08]
[1752539571652,25.47666946,3015.9,3015.8,1e-08]
[1752539573735,19.1564598,3015.9,3015.8,1e-08]
[1752539574848,25.47666946,3015.9,3015.8,1e-08]
[1752539580787,26.02666946,3015.9,3015.8,1e-08]
[1752539584797,40.52666946,3015.9,3015.8,1e-08]
[1752539586565,35.48466946,3015.9,3015.8,1e-08]
[1752539586768,44.01266946,3015.9,3015.8,1e-08]
[1752539587226,44.72643429,3015.9,3015.8,1e-08]
[1752539587522,20.45433924,3015.2,3015.1,1e-08]
[1752539587721,30.78841602,3015.2,3015.1,1e-08]
[1752539588025,13.48223958,3015.1,3015.0,1e-08]
[1752539588167,3.31674958,3015.0,3014.9,1e-08]
[1752539588371,3.31718967,3014.6,3014.0,0.1656]
[1752539588581,14.67939933,3014.6,3014.0,0.1656]
[1752539590493,20.41449933,3014.6,3014.1,0.04]
[1752539590668,25.45649933,3014.6,3014.1,0.04]
[1752539590868,20.41449933,3014.6,3014.1,0.04]
[1752539591115,13.31751982,3014.3,3014.1,0.04]
[1752539591426,24.67972948,3014.3,3014.1,0.04]
[1752539591712,25.50232948,3014.3,3014.2,1e-08]
[1752539592818,26.05232948,3014.3,3014.2,1e-08]
[1752539595497,18.35951982,3014.3,3014.2,1e-08]
[1752539599900,5.043,3014.4,3014.3,0.771]
[1752539600931,3.31692898,3014.9,3014.3,0.771]
[1752539601233,5.043,3014.8,3014.5,0.7919]
[1752539602134,0.1656,3015.0,3014.6,0.7536]
[1752539602332,5.043,3014.9,3014.6,4.07071659]
[1752539602536,5.043,3014.9,3014.6,0.7536]
[1752539603770,0.1656,3015.0,3014.6,4.80954775]
[1752539603968,5.042,3014.9,3014.6,1.6580271]
[1752539604163,5.042,3014.9,3014.6,0.9192]
[1752539604366,5.042,3014.9,3014.6,0.7536]
[1752539604567,12.60091852,3015.2,3014.8,0.9928]
[1752539604725,5.042,3015.1,3014.8,0.9928]
[1752539605430,3.31665671,3015.1,3014.8,0.9928]
[1752539605658,5.042,3015.0,3014.8,0.9928]
[1752539606367,8.35882093,3015.0,3014.8,0.9928]
[1752539606538,5.042,3015.0,3014.8,0.9928]
[1752539606739,12.60093381,3015.2,3014.8,0.9928]
[1752539606954,8.35864312,3015.1,3014.8,0.9928]
[1752539607468,9.28432669,3015.2,3015.1,0.7506]
[1752539607673,14.32632669,3015.2,3015.1,0.7506]
[1752539607886,14.32632669,3015.2,3015.1,4.06723958]
[1752539608033,14.32632669,3015.2,3015.1,0.7506]
[1752539608453,9.28432669,3015.2,3015.1,4.06723958]
[1752539608663,9.28432669,3015.2,3015.1,4.49052354]
[1752539608835,14.32632669,3015.2,3015.1,4.49052354]
[1752539609236,12.999,3015.2,3015.1,4.49052354]
[1752539609642,12.999,3015.2,3015.1,1.17388396]
[1752539610738,12.999,3015.2,3015.1,0.7506]
[1752539611649,12.999,3015.2,3015.1,4.06723958]
[1752539612948,12.998,3015.2,3015.1,4.06723958]
[1752539614695,7.957,3015.2,3015.1,4.06723958]
[1752539614898,12.998,3015.2,3015.1,0.7506]
[1752539615245,12.998,3015.2,3015.0,0.1656]
[1752539615610,16.3145391,3015.2,3015.0,0.1656]
[1752539615747,3.31663958,3015.1,3015.0,0.1656]
[1752539616667,3.31689292,3014.9,3014.7,0.8327]
[1752539616850,8.35796961,3014.8,3014.7,0.8327]
[1752539617055,3.31713141,3014.7,3014.4,0.7703]
[1752539617357,8.35820437,3014.6,3014.4,0.9359]
[1752539617558,3.31729971,3014.5,3014.4,0.9359]
[1752539617774,4.08446806,3014.4,3014.3,0.1656]
[1752539617989,3.31751982,3014.3,3014.2,1e-08]
[1752539618659,8.35851982,3014.3,3014.2,1e-08]
[1752539619061,5.041,3014.3,3014.2,1e-08]
[1752539619997,8.35851982,3014.3,3014.2,1e-08]
[1752539620994,3.31751982,3014.3,3014.2,1e-08]
[1752539621174,5.041,3014.3,3014.2,0.78070001]
[1752539621572,8.35851982,3014.3,3014.2,0.78070001]
[1752539622002,5.041,3014.3,3014.2,0.78070001]
[1752539622567,8.35851982,3014.3,3014.2,1e-08]
[1752539624316,5.041,3014.3,3014.2,1e-08]
[1752539624470,8.35851982,3014.3,3014.2,1e-08]
[1752539625401,9.6040734,3014.3,3014.2,1e-08]
[1752539626364,8.35851982,3014.3,3014.2,1e-08]
[1752539630987,8.35851982,3014.3,3013.8,0.1656]
[1752539631187,8.35851982,3014.3,3013.6,0.001]
[1752539631188,3.3181803,3013.7,3013.6,0.001]
[1752539631515,8.3601803,3013.7,3013.6,0.001]
[1752539638983,14.70444885,3013.7,3013.6,0.001]
[1752539639382,3.31862078,3013.3,3013.2,0.001]
[1752539639609,14.70588933,3013.3,3013.2,0.001]
[1752539640433,14.70588933,3013.3,3013.1,1e-08]
[1752539640434,13.31873091,3013.2,3013.1,1e-08]
[1752539640581,14.07973091,3013.2,3013.1,1e-08]
[1752539640779,3.31961226,3012.4,3012.3,0.001]
[1752539641121,8.36461226,3012.4,3012.3,0.001]
[1752539642717,3.31961226,3012.4,3012.3,0.001]
[1752539642883,8.36561226,3012.4,3012.3,0.001]
[1752539643084,10.33415112,3012.4,3012.3,0.001]
[1752539644085,0.1656,3012.4,3012.3,0.001]
[1752539644278,8.53221226,3012.4,3012.3,0.001]
[1752539645602,3.48521226,3012.4,3012.3,0.001]
[1752539645798,8.53321226,3012.4,3012.3,0.001]
[1752539646026,3.48521226,3012.4,3012.3,0.001]
[1752539646207,8.53321226,3012.4,3012.3,0.001]
[1752539646399,3.31934596,3012.7,3012.3,0.001]
[1752539646712,5.048,3012.6,3012.3,0.7821]
[1752539647724,3.31959847,3012.5,3012.3,0.7821]
[1752539648017,5.048,3012.4,3012.3,0.7821]
[1752539650134,0.1656,3012.7,3012.3,0.7821]
[1752539650335,5.048,3012.6,3012.3,0.7821]
[1752539651698,5.047,3012.5,3012.3,0.7821]
[1752539652237,3.48488389,3012.7,3012.3,0.7821]
[1752539652399,13.31880881,3013.2,3012.4,3.48521226]
[1752539652400,0.1656,3013.2,3012.4,3.48521226]
[1752539652604,13.31903606,3013.0,3012.6,0.1656]
[1752539652799,3.3192817,3012.7,3012.6,0.1656]
[1752539653005,3.3192817,3012.7,3012.3,0.7821]
[1752539653006,3.31939188,3012.6,3012.3,0.7821]
[1752539653229,3.31961226,3012.4,3012.3,0.1666]
[1752539653578,3.31961226,3012.4,3012.3,0.001]
[1752539655247,10.0,3012.6,3012.3,0.001]
[1752539655564,8.3685574,3012.5,3012.3,0.001]
[1752539656749,3.31961226,3012.4,3012.3,0.001]
[1752539657558,0.1656,3012.7,3012.3,0.001]
[1752539657731,10.0,3013.1,3012.3,0.001]
[1752539657732,0.7868,3013.1,3012.4,0.8036]
[1752539657915,0.002,3012.9,3012.6,0.1656]
[1752539658109,5.051,3012.8,3012.6,0.1656]
[1752539658305,5.851,3012.8,3012.6,0.1656]
[1752539658707,3.3192851,3012.7,3012.4,0.8036]
[1752539658941,5.851,3012.8,3012.5,0.1656]
[1752539658942,5.05,3012.6,3012.5,0.1656]
[1752539662367,8.36939188,3012.6,3012.5,0.1656]
[1752539662509,8.36939188,3012.6,3012.3,0.1666]
[1752539662706,3.31961226,3012.4,3012.3,0.001]
[1752539662951,8.53421226,3012.4,3012.3,0.001]
[1752539663937,9.33431226,3012.4,3012.3,0.001]
[1752539665956,9.33831226,3012.4,3012.3,0.001]
[1752539666333,9.33631226,3012.4,3012.3,0.001]
[1752539666535,10.69565061,3012.4,3012.3,0.001]
[1752539667130,5.64465061,3012.4,3012.3,0.001]
[1752539667347,10.69565061,3012.4,3012.3,0.001]
[1752539667922,5.64465061,3012.4,3012.3,0.001]
[1752539668121,3.31983268,3012.2,3012.1,0.04]
[1752539668326,9.14923268,3012.2,3012.1,0.04]
[1752539668547,4.09923268,3012.2,3012.1,0.04]
[1752539668861,9.16423268,3012.2,3012.1,0.04]
[1752539671773,4.09923268,3012.2,3012.1,0.04]
[1752539671967,10.10680187,3012.2,3012.1,0.04]
[1752539672132,5.03480187,3012.2,3012.1,0.04]
[1752539672516,10.10780187,3012.2,3012.1,0.04]
[1752539672867,10.90780187,3012.2,3012.1,0.04]
[1752539673069,10.90680187,3012.2,3012.1,0.04]
[1752539674696,10.10680187,3012.2,3012.1,0.04]
[1752539675698,10.10680187,3012.2,3011.9,0.001]
[1752539675700,3.32005312,3012.0,3011.9,1e-08]
[1752539676009,14.10985312,3012.0,3011.9,1e-08]
[1752539676301,19.72985312,3012.0,3011.9,1e-08]
[1752539678911,4.14183517,3011.2,3011.1,0.04]
[1752539679115,17.59801869,3011.2,3011.1,0.04]
[1752539679313,17.59801869,3011.2,3011.1,1e-08]
[1752539679314,27.59801869,3011.2,3011.1,1e-08]
[1752539680681,3.32148669,3010.7,3010.6,0.001]
[1752539680880,13.32148669,3010.7,3010.6,0.001]
[1752539681187,18.39948669,3010.7,3010.6,0.001]
[1752539682991,20.18590995,3010.7,3010.6,0.001]
[1752539683609,8.38018352,3011.2,3010.6,0.001]
[1752539683610,0.41418352,3011.2,3010.6,0.001]
[1752539683778,0.7547,3011.9,3010.7,4.13431302]
[1752539683975,8.67828969,3012.1,3010.6,0.001]
[1752539683976,3.32148669,3010.7,3010.6,0.001]
[1752539684201,8.40448669,3010.7,3010.6,0.001]
[1752539684523,5.09,3010.7,3010.6,0.001]
[1752539684725,0.8126,3011.4,3010.6,0.83]
[1752539685019,5.09,3011.3,3010.7,4.1374771]
[1752539685334,5.09,3011.2,3010.7,0.816]
[1752539685480,3.32148669,3010.7,3010.6,0.001]
[1752539685679,8.41648669,3010.7,3010.6,0.001]
[1752539687734,9.18268669,3010.7,3010.6,0.001]
[1752539688684,17.15068669,3010.7,3010.6,0.001]
[1752539689089,24.3792,3010.7,3009.1,0.04]
[1752539689298,3.32226952,3010.0,3009.2,0.8223]
[1752539689620,3.32237952,3009.9,3009.4,0.8223]
[1752539690132,5.121,3009.8,3009.4,0.8223]
[1752539690430,5.12,3009.7,3009.5,0.8094]
[1752539690617,13.32186958,3010.4,3009.9,0.8094]
[1752539690798,8.44394695,3010.3,3009.9,0.8094]
[1752539691123,3.32205081,3010.2,3009.9,0.8094]
[1752539691322,3.32248455,3009.8,3009.6,0.7686]
[1752539691537,8.44360671,3009.7,3009.2,4.09169428]
[1752539691691,5.122,3009.6,3009.2,4.09169428]
[1752539691886,5.122,3009.6,3009.2,0.7686]
[1752539692088,5.122,3009.6,3009.3,3.32302492]
[1752539692287,5.122,3009.6,3009.2,4.83720787]
[1752539692514,5.122,3009.6,3009.3,3.32302143]
[1752539693124,5.122,3009.6,3009.2,1.51411254]
[1752539693284,5.122,3009.6,3009.3,3.32302898]
[1752539693890,5.122,3009.6,3009.2,4.83721713]
[1752539694090,5.122,3009.6,3009.4,0.1656]
[1752539694789,5.121,3009.5,3009.4,3.48841133]
[1752539695231,5.12,3009.5,3009.4,3.48841133]
[1752539695402,3.48798488,3009.9,3009.4,0.1656]
[1752539695607,5.12,3009.8,3009.4,0.1656]
[1752539696291,3.32259614,3009.7,3009.4,0.1656]
[1752539696607,5.12,3009.6,3009.4,0.1656]
[1752539696788,9.28700293,3009.6,3009.4,0.1656]
[1752539696992,3.32281109,3009.5,3009.4,0.1656]
[1752539697192,3.32281109,3009.5,3009.1,0.04]
[1752539697516,8.44196858,3009.4,3009.1,0.04]
[1752539698037,3.32309781,3009.3,3009.1,0.04]
[1752539698207,5.119,3009.4,3009.1,0.04]
[1752539698208,5.119,3009.2,3009.1,0.04]
[1752539698770,9.22064236,3009.2,3009.1,0.04]
[1752539699230,5.119,3009.2,3009.1,0.04]
[1752539700441,3.32276237,3009.6,3009.1,0.04]
[1752539700740,5.2826,3009.5,3009.1,0.04]
[1752539701089,8.60543891,3009.5,3009.1,0.04]
[1752539701288,3.32293704,3009.4,3009.1,0.04]
[1752539701494,3.32295444,3009.4,3009.1,0.04]
[1752539701727,3.32294066,3009.4,3009.1,0.04]
[1752539701941,8.4411271,3009.3,3009.1,0.04]
[1752539702130,8.6067271,3009.3,3009.1,0.04]
[1752539702835,5.2836,3009.3,3009.1,0.04]
[1752539704730,8.60664517,3009.3,3009.1,0.04]
[1752539705309,0.8154,3009.9,3009.1,0.04]
[1752539705624,0.1656,3009.5,3009.3,0.8107]
[1752539705936,5.116,3009.4,3009.3,0.8107]
[1752539706141,0.1656,3009.5,3009.3,0.8107]
[1752539706294,0.7959,3010.2,3009.3,0.8107]
[1752539706495,0.1656,3009.9,3009.5,3.32273602]
[1752539706790,0.1656,3009.9,3009.6,3.3226151]
[1752539706791,5.116,3009.8,3009.6,3.3226151]
[1752539706996,5.116,3009.7,3009.4,0.1656]
[1752539707502,0.1656,3009.9,3009.5,3.32274617]
[1752539707698,5.116,3009.8,3009.4,3.48851358]
[1752539707921,5.116,3009.7,3009.6,3.32269033]
[1752539708106,5.116,3009.7,3009.5,3.32275811]
[1752539708437,0.1656,3010.2,3009.6,3.48824454]
[1752539708638,5.115,3010.1,3009.6,3.48824454]
[1752539708797,3.48772724,3010.2,3009.7,3.32258588]
[1752539709135,5.114,3010.1,3009.7,3.32258588]
[1752539709690,0.1656,3010.2,3009.7,3.32258588]
[1752539709934,5.113,3010.1,3009.7,3.32258588]
[1752539710134,5.113,3010.1,3009.6,3.48826044]
[1752539710311,5.113,3010.1,3009.6,3.48820449]
[1752539710510,5.113,3010.1,3009.7,3.32257711]
[1752539710750,5.113,3010.1,3009.7,3.32259029]
[1752539711269,5.113,3010.1,3009.6,0.1656]
[1752539711549,5.113,3010.1,3009.5,0.7957]
[1752539711550,3.32244821,3009.9,3009.5,0.7957]
[1752539711846,5.113,3009.8,3009.5,0.9613]
[1752539711998,3.48791581,3010.0,3009.5,0.9613]
[1752539711999,5.112,3009.7,3009.5,0.9613]
[1752539713651,0.1656,3010.0,3009.6,3.32270069]
[1752539713957,0.1656,3010.0,3009.7,3.32256668]
[1752539714100,5.111,3009.9,3009.7,3.32256668]
[1752539714400,5.111,3009.9,3009.6,3.32265733]
[1752539714600,0.1656,3010.0,3009.6,3.32265733]
[1752539714601,0.1656,3010.0,3009.7,3.32259029]
[1752539714835,5.111,3009.9,3009.8,3.32240595]
[1752539715041,0.1656,3010.0,3009.8,3.32240595]
[1752539715240,0.1656,3010.4,3009.9,4.13636951]
[1752539715440,5.112,3010.3,3009.9,4.13636951]
[1752539715625,5.112,3010.3,3009.9,0.814]
[1752539715936,8.96169753,3010.3,3009.8,3.48803803]
[1752539716482,5.63976,3010.3,3009.8,0.1656]
[1752539716680,3.32209431,3010.2,3009.8,0.1656]
[1752539716978,0.7964,3010.2,3009.2,0.814]
[1752539717278,3.32239832,3009.9,3009.5,0.1656]
[1752539717486,5.112,3009.8,3009.5,0.1656]
[1752539717635,5.112,3009.8,3009.5,3.48839658]
[1752539717838,5.112,3009.8,3009.5,0.1656]
[1752539718385,5.112,3009.8,3009.5,3.4883924]
[1752539718587,5.112,3009.8,3009.5,0.1656]
[1752539719056,5.112,3009.8,3009.5,3.48834869]
[1752539719741,5.112,3009.8,3009.5,0.1656]
[1752539720137,5.112,3009.8,3009.6,3.3226112]
[1752539720395,5.111,3009.7,3009.6,0.7902]
[1752539721241,5.112,3009.7,3009.6,0.7902]
[1752539722465,5.112,3009.7,3009.5,0.1656]
[1752539728185,5.112,3009.7,3009.5,3.48839865]
[1752539728510,5.112,3009.7,3009.5,0.1656]
[1752539729431,5.112,3009.7,3009.5,3.48836946]
[1752539729734,0.002,3009.9,3009.5,0.76292338]
[1752539729904,0.002,3009.9,3009.8,0.8294]
[1752539730109,5.109,3009.9,3009.8,4.31747989]
[1752539731294,0.002,3009.9,3009.8,4.31747989]
[1752539731595,5.108,3009.9,3009.8,0.995]
[1752539732025,5.108,3009.9,3009.8,0.1656]
[1752539733116,5.108,3009.9,3009.8,3.48807989]
[1752539734249,5.108,3009.9,3009.8,0.1656]
[1752539735573,3.32247989,3009.8,3009.7,0.1656]
[1752539735915,3.32247989,3009.8,3009.5,0.1656]
[1752539736134,5.104,3009.7,3009.5,0.1656]
[1752539738506,8.42668185,3009.7,3009.5,0.1656]
[1752539738712,3.32270069,3009.6,3009.5,0.1656]
[1752539739445,3.32297558,3009.4,3009.1,0.04]
[1752539739647,3.32297558,3009.4,3009.1,0.2056]
[1752539739648,8.42409763,3009.3,3009.1,0.2056]
[1752539739825,5.101,3009.3,3009.1,0.2056]
[1752539740723,8.42404743,3009.3,3009.1,0.2056]
[1752539741019,5.101,3009.3,3009.1,0.2056]
[1752539743155,8.42405824,3009.3,3009.1,0.2056]
[1752539743655,3.32309865,3009.3,3009.1,0.04]
[1752539743842,5.1,3009.2,3009.1,0.04]
[1752539744373,10.0491078,3009.2,3009.1,0.04]
[1752539746967,20.0491078,3009.2,3009.1,0.04]
[1752539748590,14.9491078,3009.2,3009.1,0.04]
[1752539748788,20.0491078,3009.2,3009.1,0.04]
[1752539748996,14.9491078,3009.2,3009.1,0.04]
[1752539749169,20.0491078,3009.2,3009.1,0.04]
[1752539749994,14.9491078,3009.2,3009.1,0.04]
[1752539750176,20.0481078,3009.2,3009.1,0.04]
[1752539750752,20.5981078,3009.2,3009.1,0.04]
[1752539750955,20.5981078,3009.2,3009.0,0.001]
[1752539751174,14.89701809,3009.1,3009.0,0.001]
[1752539751394,19.99501809,3009.1,3009.0,0.001]
[1752539751603,29.99501809,3009.1,3009.0,0.001]
[1752539751932,16.78186324,3009.0,3008.9,1e-08]
[1752539752138,14.07581557,3008.5,3008.4,0.001]
[1752539752420,36.68093093,3008.5,3008.4,0.001]
[1752539752565,37.23093093,3008.5,3008.4,0.001]
[1752539755524,4.14594705,3008.2,3008.1,0.04]
[1752539755662,10.11081249,3008.2,3008.1,0.04]
[1752539758906,5.00481249,3008.2,3008.1,0.04]
[1752539759115,10.10981249,3008.2,3008.1,0.04]
[1752539759689,10.65881249,3008.2,3008.1,0.04]
[1752539760085,5.55481249,3008.2,3008.1,0.04]
[1752539760297,6.35481249,3008.2,3008.1,0.04]
[1752539760622,11.45781249,3008.2,3008.1,0.04]
[1752539761193,5.80481249,3008.2,3008.1,0.04]
[1752539761401,0.8,3008.2,3008.1,0.04]
[1752539761594,0.1656,3008.5,3008.3,0.8147]
[1752539761827,5.108,3008.4,3008.3,0.8147]
[1752539762522,8.43202606,3008.4,3008.3,0.8147]
[1752539762830,3.32424705,3008.2,3008.1,0.04]
[1752539763031,8.43424705,3008.2,3008.1,0.04]
[1752539763701,19.30746241,3008.2,3008.1,0.04]
[1752539763889,19.30746241,3008.2,3007.1,0.867]
[1752539763890,3.32523777,3007.4,3007.1,0.867]
[1752539764089,5.113,3007.3,3007.1,0.867]
[1752539764808,5.113,3007.3,3007.1,4.19238967]
[1752539765011,0.1656,3007.5,3007.1,1.6353668]
[1752539765397,5.113,3007.4,3007.3,0.1656]
[1752539765811,0.1656,3007.8,3007.4,0.7842]
[1752539766014,5.113,3007.7,3007.4,0.7842]
[1752539766999,5.112,3007.6,3007.4,0.7842]
[1752539769719,5.112,3007.6,3007.4,4.1093056]
[1752539769916,5.112,3007.6,3007.4,0.7842]
[1752539770107,5.109,3007.5,3007.4,4.10931323]
[1752539770307,0.1656,3007.8,3007.5,3.32495746]
[1752539770514,5.109,3007.7,3007.5,3.32495746]
[1752539770905,5.109,3007.7,3007.4,0.7842]
[1752539771104,5.109,3007.7,3007.4,4.10926546]
[1752539771299,5.109,3007.7,3007.5,3.32498439]
[1752539772634,5.109,3007.6,3007.5,0.76000135]
[1752539772937,5.109,3007.6,3007.5,4.08502213]
[1752539773140,5.109,3007.6,3007.5,4.25062213]
[1752539773835,0.1656,3008.2,3007.8,3.32459406]
[1752539774053,5.107,3008.1,3007.6,3.32491022]
[1752539774239,5.107,3008.1,3007.7,3.32476674]
[1752539774727,8.43136803,3008.1,3007.6,3.32486611]
[1752539775323,5.107,3008.1,3007.7,3.32478824]
[1752539775642,5.107,3008.0,3007.6,3.3248582]
[1752539777034,8.43148847,3008.0,3007.5,4.25056748]
[1752539777243,8.43152029,3008.0,3007.5,0.92560135]
[1752539777404,8.43152029,3008.0,3007.5,3.49060997]
[1752539777977,3.32468914,3007.8,3007.2,0.7858]
[1752539778138,8.42780264,3007.7,3007.2,0.7858]
[1752539778477,3.32491653,3007.6,3007.2,0.7858]
[1752539778919,3.32524191,3007.3,3007.2,0.7858]
[1752539779116,8.42824191,3007.3,3007.2,0.7858]
[1752539779419,8.42824191,3007.3,3007.1,0.02994]
[1752539780069,5.103,3007.2,3007.1,0.02994]
[1752539780654,8.42835248,3007.2,3007.1,0.02994]
[1752539782065,5.103,3007.2,3007.1,0.02994]
[1752539782381,5.102,3007.2,3007.1,0.02994]
[1752539783861,8.42735248,3007.2,3007.1,0.02994]
[1752539785226,5.102,3007.2,3007.1,0.02994]
[1752539786274,5.1,3007.2,3007.1,0.02994]
[1752539788168,5.098,3007.2,3007.1,0.02994]
[1752539792982,8.42335248,3007.2,3007.1,0.02994]
[1752539793186,10.41401284,3007.2,3007.1,0.02994]
[1752539796183,5.31601284,3007.2,3007.1,0.02994]
[1752539796387,5.093,3007.2,3007.1,0.02994]
[1752539797111,5.095,3007.2,3007.1,3.35540307]
[1752539797401,3.32493995,3007.6,3007.1,3.35540307]
[1752539797402,8.1426,3007.9,3007.3,3.32517388]
[1752539797553,5.095,3007.8,3007.3,3.32517388]
[1752539797752,5.095,3007.8,3007.4,0.1656]
[1752539797976,5.095,3007.8,3007.5,3.3249626]
[1752539798580,5.095,3007.8,3007.5,3.32497233]
[1752539798893,5.095,3007.8,3007.4,3.4907061]
[1752539799199,5.095,3007.8,3007.5,3.32501965]
[1752539799492,5.095,3007.8,3007.4,3.49073093]
[1752539799791,5.095,3007.8,3007.4,0.1656]
[1752539800299,3.32481589,3007.7,3007.4,0.1656]
[1752539800503,5.098,3007.6,3007.4,0.1656]
[1752539801704,8.42291845,3007.6,3007.4,0.1656]
[1752539802531,5.098,3007.6,3007.4,0.1656]
[1752539803172,5.098,3007.6,3007.4,3.49064742]
[1752539803369,8.1426,3007.9,3007.5,0.8094]
[1752539803573,5.094,3007.8,3007.6,0.0332491]
[1752539803773,5.094,3007.8,3007.5,4.13435446]
[1752539803978,5.094,3007.8,3007.7,0.1656]
[1752539805683,5.094,3007.8,3007.7,3.49039968]
[1752539805888,5.094,3007.8,3007.7,0.93139407]
[1752539807473,5.094,3007.8,3007.7,0.1656]
[1752539810433,5.096,3007.8,3007.7,0.1656]
[1752539811882,5.096,3007.8,3007.7,3.49039968]
[1752539811883,0.002,3007.8,3007.7,3.49039968]
[1752539812078,5.091,3007.8,3007.7,0.1656]
[1752539817093,5.091,3007.8,3007.7,3.49039968]
[1752539817522,0.002,3007.8,3007.7,3.49039968]
[1752539817705,5.087,3007.8,3007.7,4.30909968]
[1752539817920,0.002,3007.8,3007.7,5.10574825]
[1752539818125,5.087,3007.8,3007.7,5.10574825]
[1752539818292,5.087,3007.8,3007.7,5.07250026]
[1752539818493,5.087,3007.8,3007.7,0.9843]
[1752539819003,5.087,3007.8,3007.7,0.1656]
[1752539821732,8.41168914,3007.8,3007.7,0.1656]
[1752539821934,5.087,3007.8,3007.7,0.1656]
[1752539822431,5.087,3007.8,3007.7,4.29599968]
[1752539822619,5.087,3007.8,3007.7,4.72892467]
[1752539823231,5.087,3007.8,3007.7,1.40412499]
[1752539823392,5.087,3007.8,3007.7,0.9712]
[1752539823820,5.087,3007.8,3007.7,0.1656]
[1752539826735,8.41168914,3007.8,3007.7,0.1656]